bitfinex/quotes_ETHUSD_20250413
["timestamp","ask_amount","ask_price","bid_price","bid_amount"]
[1744587964794,4.56e-06,1589.4,1589.3,9.37755235]
[1744587965083,4.56e-06,1589.4,1589.3,9.44045877]
[1744587965251,4.56e-06,1589.4,1589.3,10.99610655]
[1744587965654,4.56e-06,1589.4,1589.3,10.93320013]
[1744587966066,4.56e-06,1589.4,1589.3,7.62280768]
[1744587966383,4.56e-06,1589.4,1589.3,6.93191934]
[1744587966603,4.56e-06,1589.4,1589.3,6.86900768]
[1744587966774,4.56e-06,1589.4,1589.3,5.3133599]
[1744587969473,4.56e-06,1589.4,1589.3,5.37627207]
[1744587969890,4.56e-06,1589.4,1589.3,5.3133599]
[1744587970493,4.56e-06,1589.4,1589.3,8.62375235]
[1744587971656,4.56e-06,1589.4,1589.3,5.3133599]
[1744587971852,0.82920456,1589.4,1589.3,0.2796999]
[1744587972055,4.56e-06,1589.4,1589.3,5.3133599]
[1744587972808,4.56e-06,1589.4,1589.3,10.46077134]
[1744587973388,4.56e-06,1589.4,1589.3,13.46077134]
[1744587973940,4.56e-06,1589.4,1589.3,10.46077134]
[1744587974793,4.56e-06,1589.4,1589.3,10.52367799]
[1744587975014,4.56e-06,1589.4,1589.3,10.46077134]
[1744587976242,4.56e-06,1589.4,1589.3,14.07367142]
[1744587976524,4.56e-06,1589.4,1589.3,14.01077134]
[1744587976686,4.56e-06,1589.4,1589.3,13.46077134]
[1744587978126,4.56e-06,1589.4,1589.3,14.01077134]
[1744587978743,4.56e-06,1589.4,1589.3,20.17077134]
[1744587980031,4.56e-06,1589.4,1589.3,19.62077134]
[1744587980609,4.56e-06,1589.4,1589.3,20.17077134]
[1744587983926,4.56e-06,1589.4,1589.3,20.47978167]
[1744587984150,4.56e-06,1589.4,1589.3,20.17077134]
[1744587986659,0.8003,1590.2,1590.1,5.03113]
[1744587986952,0.8003,1590.2,1590.1,5.27710149]
[1744587987419,0.8503,1590.4,1590.3,5.03049]
[1744587987619,0.8503,1590.4,1590.2,5.03067]
[1744587987922,0.8503,1590.4,1590.3,0.24526119]
[1744587988143,0.8503,1590.4,1590.2,5.03067]
[1744587988347,0.8503,1590.4,1590.3,0.24558406]
[1744587988545,0.8503,1590.4,1590.2,5.03067]
[1744587988747,0.8503,1590.4,1590.3,0.24558406]
[1744587988934,0.8503,1590.4,1590.2,10.06136]
[1744587989132,0.8503,1590.4,1590.3,0.24558406]
[1744587989336,0.8503,1590.4,1590.1,6.06187015]
[1744587989526,0.8503,1590.4,1590.3,5.03049]
[1744587989951,0.8503,1590.4,1590.3,5.27605792]
[1744587991424,0.05,1590.4,1590.3,5.27605792]
[1744587995240,0.05,1590.4,1590.3,5.33892659]
[1744587995441,0.05,1590.4,1590.3,5.27605792]
[1744587995641,0.05,1590.4,1590.3,6.71817096]
[1744587996267,0.05,1590.4,1590.3,6.78103978]
[1744587997246,0.05,1590.4,1590.3,6.71817096]
[1744587997452,0.05,1590.4,1590.3,6.78103971]
[1744587997892,0.05,1590.4,1590.3,6.71817096]
[1744587998232,0.05,1590.4,1590.3,7.52207096]
[1744587998432,0.05,1590.4,1590.3,10.58493163]
[1744588000131,0.05,1590.4,1590.3,11.05017216]
[1744588001862,1e-05,1590.4,1590.3,11.05017216]
[1744588002072,1e-05,1590.4,1590.3,11.60017216]
[1744588002367,1e-05,1590.4,1590.3,21.07056461]
[1744588002562,0.8327,1591.2,1591.1,5.02796]
[1744588002767,0.8327,1591.2,1591.1,5.25797622]
[1744588003063,0.02,1591.4,1591.3,5.02733]
[1744588003360,0.02,1591.4,1591.3,5.25541238]
[1744588003670,0.8527,1591.4,1591.3,5.25541238]
[1744588004332,0.8527,1591.4,1591.3,0.22808238]
[1744588004532,0.8327,1591.3,1591.0,10.05642]
[1744588004749,0.8327,1591.2,1591.1,5.22761431]
[1744588005990,0.8327,1591.2,1591.1,0.19970431]
[1744588007038,0.8327,1591.2,1591.1,5.22766431]
[1744588007241,0.8327,1591.2,1591.1,0.19970431]
[1744588007435,0.8327,1591.2,1591.1,5.22766431]
[1744588007870,0.8327,1591.2,1591.1,6.25324574]
[1744588008585,0.8327,1591.2,1591.1,5.22766431]
[1744588008779,0.8327,1591.2,1591.1,0.19970431]
[1744588009836,0.8327,1591.2,1591.1,5.22766431]
[1744588010371,0.8327,1591.3,1591.2,5.02734]
[1744588010565,0.8327,1591.3,1591.2,5.22730336]
[1744588010768,0.8327,1591.3,1591.2,10.25471336]
[1744588011064,0.8327,1591.3,1591.2,0.19996336]
[1744588011435,0.02,1591.4,1591.2,11.14343384]
[1744588011641,0.02,1591.4,1591.3,5.02733]
[1744588012077,0.02,1591.4,1591.3,5.22612136]
[1744588018646,0.02,1591.4,1591.3,0.19879136]
[1744588019248,0.7718,1591.4,1591.3,0.19879136]
[1744588019446,6.378679,1591.4,1591.3,0.19879136]
[1744588019762,5.02774,1591.2,1590.9,5.02853]
[1744588019980,0.7518,1591.1,1591.0,0.18241564]
[1744588020184,0.7518,1591.1,1591.0,5.21069564]
[1744588020473,0.7518,1591.1,1591.0,0.18241564]
[1744588021480,0.7518,1591.3,1591.0,0.76635513]
[1744588021777,0.02,1591.4,1591.3,5.02733]
[1744588022076,0.02,1591.4,1591.3,5.2092377]
[1744588024387,0.7818,1592.1,1592.0,5.02512]
[1744588024592,0.3952028,1592.2,1592.0,0.18088461]
[1744588024751,0.3952028,1592.2,1592.1,0.06280959]
[1744588024950,0.3952028,1592.2,1592.1,0.24377675]
[1744588025166,0.3952028,1592.2,1592.1,5.26857675]
[1744588025597,0.3952028,1592.2,1592.1,8.5789692]
[1744588025754,0.3952028,1592.2,1592.1,8.51616599]
[1744588026073,0.3952028,1592.2,1592.1,10.00530183]
[1744588026795,0.3952028,1592.2,1592.1,6.69490938]
[1744588027583,0.3952028,1592.2,1592.1,5.20577354]
[1744588028160,0.3952028,1592.2,1592.1,0.18097354]
[1744588028592,6.2014928,1592.2,1592.1,0.18097354]
[1744588028792,5.02515,1592.0,1591.5,5.02669]
[1744588029094,8.02614,1591.7,1591.6,0.14063567]
[1744588029254,8.80794,1591.7,1591.6,0.14063567]
[1744588029450,5.02651,1591.6,1591.2,10.05506]
[1744588029851,0.7818,1591.4,1591.3,0.14249868]
[1744588030263,0.7818,1591.4,1591.1,5.09068296]
[1744588030589,0.7818,1591.4,1591.2,0.14266808]
[1744588030815,0.7818,1591.4,1591.1,6.15468291]
[1744588030957,0.7818,1591.4,1591.3,0.14249868]
[1744588031159,5.80882,1591.4,1591.1,6.09183995]
[1744588031398,5.02743,1591.3,1591.2,0.1426035]
[1744588031686,10.055,1591.3,1590.9,10.41836543]
[1744588031886,8.02743,1591.3,1591.2,0.14266802]
[1744588032088,8.02743,1591.3,1590.9,15.44678543]
[1744588032289,8.02743,1591.3,1591.2,0.14279719]
[1744588032465,8.02743,1591.3,1590.9,15.44678543]
[1744588032670,8.02743,1591.3,1591.2,0.14279719]
[1744588032892,3.0,1591.3,1591.0,5.02816]
[1744588033084,3.0,1591.3,1591.2,0.14279719]
[1744588033278,3.0,1591.3,1591.1,5.09069801]
[1744588033279,3.0,1591.3,1591.1,5.17078433]
[1744588033602,8.02749,1591.3,1591.2,0.1427649]
[1744588033765,8.02749,1591.3,1590.9,5.02855]
[1744588033961,8.02749,1591.3,1591.0,0.14307148]
[1744588034583,8.02749,1591.3,1591.0,5.17130148]
[1744588034979,3.0,1591.3,1591.0,10.19941148]
[1744588035190,3.0,1591.3,1591.0,11.21938363]
[1744588035399,6.514,1591.4,1591.3,5.02733]
[1744588035601,5.80819,1591.6,1591.3,0.14266008]
[1744588035790,5.02689,1591.5,1591.1,5.02792]
[1744588036094,5.02689,1591.5,1591.2,0.14282949]
[1744588036602,5.02689,1591.5,1591.1,5.02792]
[1744588036603,5.02689,1591.5,1591.3,0.14266008]
[1744588036770,5.02689,1591.5,1591.1,5.02792]
[1744588036971,5.02689,1591.5,1591.2,0.1427649]
[1744588037300,5.02689,1591.5,1591.1,5.02792]
[1744588037500,5.02689,1591.5,1591.3,0.1425955]
[1744588037802,5.02689,1591.5,1591.4,0.14249069]
[1744588038103,5.02689,1591.5,1591.1,11.16333322]
[1744588038596,10.05379,1591.5,1591.2,0.14282949]
[1744588038778,5.02689,1591.5,1591.1,6.13541322]
[1744588038963,10.05385,1591.5,1591.2,0.14282949]
[1744588039167,11.1954969,1591.5,1591.1,5.0278]
[1744588039368,5.78694,1591.3,1591.2,0.14282949]
[1744588039565,5.78694,1591.3,1590.9,10.05699]
[1744588039769,5.78694,1591.3,1591.0,0.14316837]
[1744588041602,10.81446,1591.3,1591.0,0.14316837]
[1744588041802,5.02765,1591.2,1591.0,0.14316837]
[1744588042002,5.02765,1591.2,1590.8,5.02885]
[1744588042003,5.02796,1591.1,1590.8,5.02885]
[1744588042170,5.02796,1591.1,1590.9,0.14304716]
[1744588042371,5.02765,1591.2,1590.9,0.14304716]
[1744588042567,12.29988,1591.3,1590.9,5.17149716]
[1744588042771,12.29988,1591.3,1591.1,5.02784]
[1744588042772,0.7595,1591.3,1591.1,5.02784]
[1744588042983,3.7595,1591.3,1591.2,5.17047949]
[1744588043587,6.513,1591.4,1591.3,5.02733]
[1744588043797,5.02714,1591.4,1591.3,0.15001665]
[1744588043996,10.05436,1591.4,1591.0,6.33176972]
[1744588044280,6.108526,1591.4,1591.1,0.15083958]
[1744588044880,5.02714,1591.4,1591.1,5.17878958]
[1744588045308,5.78624,1591.5,1591.1,10.20662958]
[1744588045511,0.7595,1591.5,1591.2,5.02735]
[1744588045714,5.78638,1591.5,1591.1,5.17875958]
[1744588045881,10.81328,1591.5,1591.3,0.15014557]
[1744588046073,10.81328,1591.5,1591.2,0.15031495]
[1744588046279,10.81328,1591.5,1591.4,0.14997621]
[1744588046474,10.81328,1591.5,1591.3,0.15014557]
[1744588046699,10.81328,1591.5,1591.4,0.14997621]
[1744588046895,11.894608,1591.5,1591.4,0.14997621]
[1744588047179,5.02719,1591.4,1591.0,10.0564]
[1744588047590,10.0544,1591.4,1591.0,5.02817]
[1744588048813,1.840828,1591.5,1590.9,5.02854]
[1744588049110,0.7595,1591.1,1590.9,5.0285]
[1744588049281,0.7595,1591.1,1591.0,0.15062149]
[1744588050108,5.78746,1591.1,1591.0,0.15062149]
[1744588050408,5.78746,1591.1,1591.0,0.15865596]
[1744588050611,5.78746,1591.1,1590.8,5.02877]
[1744588050807,5.78746,1591.1,1590.9,0.15882541]
[1744588054511,10.8156,1591.1,1590.9,0.15882541]
[1744588055490,5.02828,1591.0,1590.9,0.15882541]
[1744588055695,5.02828,1591.0,1590.7,5.02918]
[1744588055916,5.02828,1591.0,1590.9,0.1581597]
[1744588056105,5.8316,1590.9,1590.8,0.14611618]
[1744588056423,5.83276,1590.6,1590.2,5.85369]
[1744588056588,5.03015,1590.5,1590.1,5.03108]
[1744588056907,11.54415,1590.5,1590.1,6.174619]
[1744588057107,16.57423,1590.5,1590.1,6.174529]
[1744588057507,11.54408,1590.5,1590.1,11.205489]
[1744588057716,11.54403,1590.5,1590.1,11.205459]
[1744588058215,16.57407,1590.5,1590.1,6.174499]
[1744588058415,16.57407,1590.5,1590.1,11.205519]
[1744588058416,11.54403,1590.5,1590.1,11.205519]
[1744588058986,11.54403,1590.5,1590.2,6.1513519]
[1744588059728,0.803,1590.6,1590.4,5.0299]
[1744588060103,6.515,1590.7,1590.5,5.02986]
[1744588060514,6.515,1590.7,1590.5,10.0596]
[1744588060835,0.803,1590.8,1590.6,5.02954]
[1744588060992,0.803,1590.8,1590.6,1.005928]
[1744588061192,0.803,1590.8,1590.5,5.02974]
[1744588061394,10.8612,1590.8,1590.4,5.03017]
[1744588061621,10.8612,1590.8,1590.3,5.85338]
[1744588061622,5.02933,1590.7,1590.3,10.88373]
[1744588061928,5.83201,1590.8,1590.4,5.03007]
[1744588062132,10.86111,1590.8,1590.4,5.615337]
[1744588062305,5.83201,1590.8,1590.4,5.615337]
[1744588062506,5.83201,1590.8,1590.5,0.13608766]
[1744588062833,5.02933,1590.7,1590.5,0.13608766]
[1744588064338,5.83201,1590.8,1590.5,0.13608766]
[1744588065387,5.83201,1590.8,1590.5,5.16593766]
[1744588065631,0.803,1590.8,1590.5,11.27379313]
[1744588065797,11.5433,1591.0,1590.6,5.02943]
[1744588066003,12.3463,1591.0,1590.7,0.13545784]
[1744588066239,17.37476,1591.0,1590.6,10.05886]
[1744588066411,17.37476,1591.0,1590.8,0.13528832]
[1744588066611,17.37476,1591.0,1590.6,5.02943]
[1744588066935,17.37476,1591.0,1590.7,0.13545784]
[1744588067228,17.37476,1591.0,1590.6,6.14316655]
[1744588067391,17.37476,1591.0,1590.7,0.13545784]
[1744588067594,17.37476,1591.0,1590.6,11.17256655]
[1744588067792,17.37476,1591.0,1590.7,0.13545784]
[1744588067995,17.37476,1591.0,1590.6,11.17253655]
[1744588068196,17.37476,1591.0,1590.7,0.13545784]
[1744588068398,17.37476,1591.0,1590.6,11.17253655]
[1744588068597,17.37476,1591.0,1590.7,0.13545784]
[1744588068799,12.3463,1591.0,1590.6,11.17253655]
[1744588069009,12.3463,1591.0,1590.7,0.13545784]
[1744588069210,12.3463,1591.0,1590.6,11.17253655]
[1744588069424,12.3463,1591.0,1590.7,0.13545784]
[1744588069734,12.3463,1591.0,1590.6,11.17253655]
[1744588069934,12.3463,1591.0,1590.8,0.13528832]
[1744588070134,7.318,1591.0,1590.7,5.16465784]
[1744588070340,6.515,1591.0,1590.8,10.05757]
[1744588070496,0.7576,1591.2,1590.9,5.0286]
[1744588070920,0.7576,1591.2,1591.0,0.13728981]
[1744588071915,0.7576,1591.2,1591.0,5.16555981]
[1744588072738,0.7576,1591.2,1591.0,0.13728981]
[1744588073113,6.363858,1591.2,1591.0,0.13728981]
[1744588073434,5.02847,1591.0,1590.6,5.02928]
[1744588073626,16.57104,1591.0,1590.7,0.13799189]
[1744588073823,6.514,1591.0,1590.4,6.432437]
[1744588074037,11.54241,1591.0,1590.6,5.02924]
[1744588074247,13.072411,1591.0,1590.7,0.13871042]
[1744588074536,11.54241,1591.0,1590.7,5.16780042]
[1744588074839,6.514,1591.0,1590.8,10.19740607]
[1744588075039,6.514,1591.0,1590.8,5.16855607]
[1744588075506,6.514,1591.0,1590.9,5.0286]
[1744588075923,6.514,1591.0,1590.9,5.16765175]
[1744588076122,6.514,1591.0,1590.9,6.18729393]
[1744588077314,6.514,1591.0,1590.9,0.13905175]
[1744588078543,6.514,1591.0,1590.9,5.16765175]
[1744588078839,3.0,1591.2,1590.9,10.19625175]
[1744588080914,3.0,1591.2,1591.0,5.02827]
[1744588081114,6.514,1591.3,1591.1,5.02773]
[1744588081349,6.514,1591.3,1591.2,5.02765]
[1744588081563,6.513,1591.4,1591.2,5.02765]
[1744588081843,5.78373,1591.7,1591.3,5.02733]
[1744588082013,5.02651,1591.6,1591.4,0.13378145]
[1744588082214,0.7576,1591.4,1591.1,5.02792]
[1744588082422,5.78483,1591.4,1591.0,10.87339]
[1744588082634,0.7576,1591.4,1591.2,10.05495]
[1744588082835,6.513,1591.5,1591.3,1.13944578]
[1744588083024,0.781,1591.6,1591.4,5.02701]
[1744588083230,0.781,1591.6,1591.5,0.13198377]
[1744588083444,0.781,1591.6,1591.3,10.11735521]
[1744588083607,0.781,1591.6,1591.5,0.13287072]
[1744588083809,5.02782,1591.2,1591.0,0.817]
[1744588084015,5.02734,1591.3,1591.1,0.13361239]
[1744588085543,5.02734,1591.3,1590.9,10.05698]
[1744588085749,5.02734,1591.3,1591.2,0.13331982]
[1744588085948,5.02734,1591.3,1591.0,1.005698]
[1744588086152,5.02734,1591.3,1591.2,0.13331982]
[1744588086355,5.02734,1591.3,1591.1,0.13348918]
[1744588086558,5.02734,1591.3,1591.2,0.13331982]
[1744588086858,5.02734,1591.3,1591.0,6.033958]
[1744588087058,10.83453,1591.5,1591.2,0.13331982]
[1744588087266,7.52067004,1591.5,1591.1,5.16134918]
[1744588087436,7.52067004,1591.5,1590.9,0.06284747]
[1744588087437,11.5391,1591.7,1591.3,0.13315048]
[1744588087775,7.294,1591.7,1591.6,5.02638]
[1744588088059,10.294,1591.7,1591.6,0.13226583]
[1744588088438,12.328576,1591.7,1591.2,5.82824]
[1744588088761,5.02653,1591.6,1591.3,0.13277368]
[1744588088965,5.02653,1591.6,1591.3,5.16006368]
[1744588089366,12.328576,1591.7,1591.3,0.13277368]
[1744588089544,10.83489,1591.5,1591.3,0.13277368]
[1744588089743,12.218379,1591.5,1591.1,5.02786]
[1744588089951,15.218379,1591.5,1591.4,0.13260438]
[1744588090134,15.218379,1591.5,1591.1,5.02786]
[1744588090466,15.218379,1591.5,1591.2,0.13294301]
[1744588090629,5.02733,1591.3,1591.2,0.13294301]
[1744588090963,5.02767,1591.2,1590.9,5.02855]
[1744588091565,0.781,1591.1,1590.7,5.02904]
[1744588091779,0.781,1591.1,1590.4,14.2998928]
[1744588091780,5.02834,1591.0,1590.5,10.05953]
[1744588091932,5.02877,1590.9,1590.6,5.02948]
[1744588092562,0.781,1590.8,1590.5,5.02962]
[1744588092786,5.81003,1590.8,1590.4,10.41989543]
[1744588092959,5.81003,1590.8,1590.4,5.38977543]
[1744588092960,5.02958,1590.6,1590.4,5.38977543]
[1744588093168,5.81091,1590.5,1590.1,5.83178]
[1744588093476,12.32291,1590.5,1590.1,5.83178]
[1744588094241,12.32291,1590.5,1590.2,0.13439602]
[1744588094458,12.32291,1590.5,1590.1,10.86272]
[1744588094664,12.32291,1590.5,1590.3,0.13422644]
[1744588094853,5.03018,1590.4,1590.2,0.13488036]
[1744588095169,5.03018,1590.4,1590.0,16.80315543]
[1744588095373,5.03018,1590.4,1590.0,18.48347097]
[1744588095684,5.03018,1590.4,1590.0,13.09369554]
[1744588096043,5.03018,1590.4,1590.0,8.06230554]
[1744588096659,10.06056,1590.4,1590.0,8.06230554]
[1744588097066,0.781,1590.3,1590.0,0.55]
[1744588097367,5.03102,1590.2,1590.0,0.55]
[1744588097562,15.85383,1590.1,1590.0,0.55]
[1744588098282,10.2727,1590.1,1590.0,0.55]
[1744588098450,7.2727,1590.1,1590.0,0.55]
[1744588100052,17.55964508,1590.1,1590.0,0.55]
[1744588101377,23.72964508,1590.1,1590.0,0.55]
[1744588106000,5.031,1590.2,1590.0,0.55]
[1744588106279,5.03113,1590.1,1590.0,0.55]
[1744588106445,8.79083,1590.1,1590.0,0.55]
[1744588106645,9.34083,1590.1,1590.0,0.55]
[1744588107045,8.79083,1590.1,1590.0,0.55]
[1744588107701,3.0,1590.1,1590.0,0.55]
[1744588107980,11.54595,1590.2,1590.0,0.55]
[1744588108188,5.03113,1590.1,1590.0,0.55]
[1744588109188,6.688838,1590.1,1590.0,0.55]
[1744588110986,10.238838,1590.1,1590.0,0.55]
[1744588111169,10.998538,1590.1,1590.0,0.55]
[1744588113700,17.168538,1590.1,1590.0,0.55]
[1744588115296,20.47051749,1590.1,1590.0,0.55]
[1744588118496,8.58334,1589.4,1589.3,0.55]
[1744588118698,15.09934,1589.4,1589.3,0.55]
[1744588119065,15.09934,1589.4,1589.3,0.68452221]
[1744588119304,17.44278895,1589.4,1589.3,0.68452221]
[1744588119694,17.44278895,1589.4,1589.3,0.55]
[1744588121661,17.92103655,1589.4,1589.3,0.55]
[1744588123777,18.74083655,1589.4,1589.3,0.55]
[1744588127700,24.91083655,1589.4,1589.3,0.55]
[1744588128874,15.686,1589.4,1589.3,0.55]
[1744588129071,15.688,1589.4,1589.3,0.68986183]
[1744588129374,9.17,1589.4,1589.3,0.68986183]
[1744588129673,14.20334,1589.4,1589.3,0.68986183]
[1744588129872,14.20334,1589.4,1589.3,0.55]
[1744588130173,14.20334,1589.4,1589.3,0.68963538]
[1744588132239,6.518,1589.5,1589.3,0.68963538]
[1744588132399,6.518,1589.5,1589.4,0.7915]
[1744588132724,11.55102,1589.5,1589.4,0.7915]
[1744588133020,6.518,1589.5,1589.4,0.7915]
[1744588134520,6.518,1589.5,1589.4,0.93062593]
[1744588134929,11.55102,1589.5,1589.4,0.7915]
[1744588136640,6.518,1589.5,1589.4,0.7915]
[1744588136934,6.518,1589.5,1589.4,0.93067445]
[1744588137725,6.518,1589.5,1589.4,0.7915]
[1744588139371,6.518,1589.5,1589.4,6.60036164]
[1744588142110,9.517,1589.8,1589.6,5.86208]
[1744588142326,6.517,1589.8,1589.7,5.03239]
[1744588142529,6.517,1589.8,1589.7,5.16861678]
[1744588142900,6.517,1589.8,1589.7,5.03239]
[1744588144144,6.517,1589.8,1589.7,6.888934]
[1744588144360,3.0,1590.0,1589.7,6.888854]
[1744588144498,3.0,1590.0,1589.7,7.02378173]
[1744588144803,70.55073,1590.1,1589.7,7.02370173]
[1744588144804,65.51932,1590.1,1589.7,7.02370173]
[1744588145005,60.488,1590.1,1589.8,10.06385]
[1744588145238,60.488,1590.1,1589.8,5.03192]
[1744588145441,5.03144,1590.0,1589.9,0.13505685]
[1744588145666,65.51926,1590.1,1589.9,0.13505685]
[1744588145798,65.51926,1590.1,1589.7,5.79936]
[1744588145998,65.51916,1590.1,1589.7,0.7671]
[1744588146324,71.6641196,1590.1,1589.8,0.13504885]
[1744588146629,65.51916,1590.1,1589.8,5.16707885]
[1744588146834,65.51916,1590.1,1589.8,0.13504885]
[1744588147037,5.03176,1589.9,1589.8,0.13504885]
[1744588147248,8.58176,1589.9,1589.8,0.13504885]
[1744588147405,5.03322,1589.5,1589.3,1.3171]
[1744588147842,5.03322,1589.5,1589.4,0.12022232]
[1744588148014,5.03322,1589.5,1589.3,1.3171]
[1744588148208,5.03334,1589.4,1589.3,1.3171]
[1744588148409,5.03334,1589.4,1589.3,0.55]
[1744588148717,11.54876,1589.6,1589.3,0.55]
[1744588149053,11.54876,1589.6,1589.4,0.7671]
[1744588149054,6.516,1589.6,1589.4,0.7671]
[1744588149261,6.516,1589.6,1589.4,5.80043]
[1744588149480,6.516,1589.6,1589.4,0.7671]
[1744588149690,6.516,1589.6,1589.4,5.80032]
[1744588149892,9.17,1589.9,1589.4,5.80032]
[1744588150186,6.516,1590.0,1589.8,10.83077]
[1744588150881,11.20054,1590.3,1589.9,5.03165]
[1744588150882,6.17,1590.3,1589.9,5.03165]
[1744588151040,5.03089,1590.2,1589.8,5.79901]
[1744588151245,5.03089,1590.2,1589.8,11.914056]
[1744588151583,5.03055,1590.3,1590.0,5.03144]
[1744588151935,3.0,1590.2,1590.0,5.03144]
[1744588152483,8.03096,1590.2,1589.8,6.882296]
[1744588152782,3.0,1590.2,1589.9,5.03165]
[1744588152999,3.0,1590.2,1589.9,10.7514986]
[1744588153879,3.0,1590.2,1589.9,5.7198386]
[1744588154278,3.0,1590.2,1590.0,0.11827667]
[1744588154731,8.03092,1590.2,1590.0,0.11827667]
[1744588155090,3.0,1590.2,1590.0,0.11827667]
[1744588155700,8.03092,1590.2,1590.0,0.11827667]
[1744588156303,13.06194,1590.2,1590.0,0.11827667]
[1744588156500,4.306194,1590.2,1590.0,0.11827667]
[1744588156832,3.0,1590.2,1589.9,5.03154]
[1744588156987,8.03081,1590.2,1590.1,0.11817162]
[1744588157188,8.03081,1590.2,1590.0,0.11834128]
[1744588157386,8.03081,1590.2,1590.1,0.11817162]
[1744588157787,8.03081,1590.2,1589.9,5.03154]
[1744588158035,8.03081,1590.2,1590.1,0.11820392]
[1744588158333,3.0,1590.2,1590.1,0.11820392]
[1744588158494,3.0,1590.2,1590.0,5.03132]
[1744588158696,3.0,1590.2,1590.1,0.11820392]
[1744588159827,3.0,1590.2,1589.9,5.03154]
[1744588160035,3.0,1590.2,1590.1,0.11820392]
[1744588160208,5.03113,1590.1,1590.0,0.11837358]
[1744588160392,5.03113,1590.1,1589.8,5.79911]
[1744588160598,8.03081,1590.2,1589.8,5.79911]
[1744588160599,8.03081,1590.2,1589.8,10.83103]
[1744588162300,3.0,1590.2,1589.9,5.03172]
[1744588162492,3.0,1590.2,1590.1,0.7538]
[1744588163096,11.19927,1590.7,1590.3,5.03024]
[1744588163427,10.05872,1590.7,1590.3,5.03024]
[1744588163825,5.02956,1590.6,1590.3,5.03024]
[1744588164826,5.02956,1590.6,1590.3,10.06059]
[1744588166338,10.05877,1590.7,1590.3,10.06059]
[1744588166629,7.11553305,1590.7,1590.3,10.06059]
[1744588167433,6.512,1590.8,1590.6,0.7538]
[1744588167632,53.965,1590.9,1590.7,10.05813]
[1744588167932,6.511,1591.0,1590.9,5.0286]
[1744588168260,6.511,1591.0,1590.9,0.7538]
[1744588170243,6.511,1591.0,1590.9,5.7824]
[1744588171840,6.511,1591.0,1590.9,0.7538]
[1744588173164,9.51,1591.3,1590.9,1.834938]
[1744588173356,6.51,1591.3,1591.2,0.7503]
[1744588173656,11.53642,1591.6,1591.2,5.77795]
[1744588174222,3.0,1591.5,1591.3,5.02723]
[1744588174823,5.02719,1591.4,1591.0,5.02817]
[1744588175023,5.02719,1591.4,1591.1,5.77818]
[1744588175024,5.829909,1591.4,1591.1,5.77818]
[1744588175225,8.02675,1591.5,1591.2,5.02762]
[1744588175941,3.0,1591.5,1591.2,10.05514]
[1744588176442,3.0,1591.5,1591.3,5.02731]
[1744588176847,3.0,1591.5,1591.3,5.02719]
[1744588177144,6.51,1591.6,1591.4,5.77732]
[1744588177366,6.51,1591.6,1591.5,5.0267]
[1744588177853,11.5345,1591.9,1591.5,5.0267]
[1744588178046,16.5602,1591.9,1591.5,5.0267]
[1744588178223,8.02578,1591.8,1591.5,5.0267]
[1744588178430,5.02578,1591.8,1591.5,5.0267]
[1744588178735,6.509,1591.9,1591.7,5.02585]
[1744588178915,9.509,1591.9,1591.8,5.02575]
[1744588179349,6.509,1591.9,1591.8,5.02575]
[1744588179573,18.0977228,1592.2,1591.8,10.0515]
[1744588179734,0.3952028,1592.2,1592.1,5.0248]
[1744588180232,0.3952028,1592.2,1592.0,0.7503]
[1744588182259,5.4198128,1592.2,1592.0,0.7503]
[1744588182461,5.4198128,1592.2,1591.8,5.77592]
[1744588182661,5.4197128,1592.2,1591.8,5.77592]
[1744588183055,5.4197128,1592.2,1591.9,5.02544]
[1744588183437,0.3952028,1592.2,1591.9,5.02544]
[1744588183647,10.4445028,1592.2,1591.8,5.77591]
[1744588183847,11.78895308,1592.2,1591.8,5.77591]
[1744588184338,5.02483,1592.1,1591.8,5.77591]
[1744588184945,5.02483,1592.1,1591.8,0.7503]
[1744588185467,5.02483,1592.1,1591.8,5.77603]
[1744588186069,12.61649308,1592.2,1591.8,10.80163]
[1744588186363,7.59189308,1592.2,1591.8,5.7759]
[1744588186564,0.3952028,1592.2,1592.0,5.02501]
[1744588186767,0.3952028,1592.2,1592.1,5.7751]
[1744588188334,0.3952028,1592.2,1592.1,0.7503]
[1744588188541,5.02483,1592.1,1591.9,0.8236]
[1744588188747,5.4199728,1592.2,1591.9,0.8236]
[1744588188963,0.3952028,1592.2,1591.9,10.87427]
[1744588189160,0.3952028,1592.2,1591.9,5.84889]
[1744588189365,5.4197128,1592.2,1591.9,5.84889]
[1744588189642,0.3952028,1592.2,1592.0,5.02497]
[1744588190270,0.3952028,1592.2,1592.0,10.04997]
[1744588190873,0.3952028,1592.2,1592.0,5.02497]
[1744588191042,0.3952028,1592.2,1591.9,10.8744]
[1744588191241,0.3952028,1592.2,1591.9,11.96184]
[1744588191642,0.3952028,1592.2,1592.0,5.0251]
[1744588191840,0.3952028,1592.2,1592.0,10.05007]
[1744588192037,0.3952028,1592.2,1592.1,5.0248]
[1744588192447,0.3952028,1592.2,1592.0,5.02497]
[1744588192638,0.3952028,1592.2,1592.0,10.04998]
[1744588192840,0.3952028,1592.2,1592.1,5.0248]
[1744588193270,0.3952028,1592.2,1592.1,6.029777]
[1744588193453,0.3952028,1592.2,1592.1,6.853377]
[1744588194342,0.3952028,1592.2,1592.1,5.8484]
[1744588199162,0.3952028,1592.2,1592.1,5.91120355]
[1744588200582,0.3952028,1592.2,1592.1,9.14976496]
[1744588201090,0.3952028,1592.2,1592.1,9.61937752]
[1744588201751,0.3952028,1592.2,1592.1,9.14976496]
[1744588202060,0.3952028,1592.2,1592.1,7.2658735]
[1744588202475,0.3952028,1592.2,1592.1,10.63003325]
[1744588202985,0.3952028,1592.2,1592.1,10.56723846]
[1744588203183,0.3952028,1592.2,1592.1,13.56723846]
[1744588205274,0.3952028,1592.2,1592.1,14.04518817]